Workbook

Sheet Лист1
A1: Школа | C1: МБОУ "Печищинская ООШ" | F1: Утвердил: | G1: должность | H1: директор
A2: Типовое примерное меню приготавливаемых блюд | G2: фамилия | H2: Абызов Е. В.
A3: Возрастная категория | E3: 7-11 лет | G3: дата | H3: 6 | I3: 1 | J3: 2025
H4: день | I4: месяц | J4: год
A5: Неделя | B5: День недели | C5: Прием пищи | D5: Раздел меню | E5: Блюда | F5: Вес блюда, г | G5: Белки | H5: Жиры | I5: Углеводы | J5: Калорийность | K5: № рецептуры | L5: Цена
A6: 1 | B6: 1 | C6: Завтрак | D6: гор.блюдо
D8: гор.напиток
D9: хлеб
D10: фрукты
D13: итого | F13: =SUM(F6:F12) -> 0.000 | G13: =SUM(G6:G12) -> 0.000 | H13: 0.000 | I13: 0.000 | J13: 0 | L13: =SUM(L6:L12) -> 0.00
A14: =A6 -> 1 | B14: =B6 -> 1 | C14: Завтрак 2 | D14: фрукты
D17: итого | F17: =SUM(F14:F16) -> 0.000 | G17: =SUM(G14:G16) -> 0.000 | H17: 0.000 | I17: 0.000 | J17: 0 | L17: =SUM(L14:L22) -> 0.00
A18: =A6 -> 1 | B18: =B6 -> 1 | C18: Обед | D18: закуска | E18: Плоды и ягоды свежие (яблоки) | F18: 90.000 | G18: 0.360 | H18: 0.360 | I18: 8.820 | J18: 42 | K18: 338 Дели 2015
D19: 1 блюдо
D20: 2 блюдо | E20: Ежики мясные с рисом в соусе для запекания | F20: 60/30 | G20: 12.683 | H20: 13.909 | I20: 10.985 | J20: 220 | K20: ТТК от 2024
D21: гарнир | E21: Каша гречневая вязкая | F21: 150.000 | G21: 3.462 | H21: 4.634 | I21: 21.786 | J21: 143 | K21: ТТК от 2024
D22: напиток | E22: Чай с сахаром | F22: 200/8 | G22: 0.021 | H22: 0.005 | I22: 7.989 | J22: 32 | K22: ТТК от 2021
D23: хлеб бел. | E23: Хлеб пшеничный | F23: 20.000 | G23: 1.520 | H23: 0.160 | I23: 9.840 | J23: 47
D24: хлеб черн. | E24: Хлеб ржано-пшеничный | F24: 20.000 | G24: 1.000 | H24: 0.200 | I24: 9.000 | J24: 44
D27: итого | G27: =SUM(G18:G26) -> 19.046 | H27: 19.268 | I27: 68.420 | J27: 528 | L27: 66.76
A28: =A6 -> 1 | B28: =B6 -> 1 | C28: Полдник | D28: булочное
D29: напиток
D32: итого | F32: =SUM(F28:F31) -> 0.000 | G32: =SUM(G28:G31) -> 0.000 | H32: 0.000 | I32: 0.000 | J32: 0 | L32: 0.00
A33: =A6 -> 1 | B33: =B6 -> 1 | C33: Ужин | D33: гор.блюдо
D34: гарнир
D35: напиток
D36: хлеб
D39: итого | F39: =SUM(F33:F38) -> 0.000 | G39: =SUM(G33:G38) -> 0.000 | H39: 0.000 | I39: 0.000 | J39: 0 | L39: =SUM(L33:L41) -> 0.00
A40: =A6 -> 1 | B40: =B6 -> 1 | C40: Ужин 2 | D40: кисломол.
D41: булочное
D42: напиток
D43: фрукты
D46: итого | F46: =SUM(F40:F45) -> 0.000 | G46: =SUM(G40:G45) -> 0.000 | H46: 0.000 | I46: 0.000 | J46: 0 | L46: =SUM(L40:L48) -> 0.00
A47: =A6 -> 1 | B47: =B6 -> 1 | C47: Итого за день: | F47: =F27 -> 0.000 | G47: =G27 -> 19.046 | H47: 19.268 | I47: 68.420 | J47: 528 | L47: =L27 -> 66.76
A48: 1 | B48: 2 | C48: Завтрак | D48: гор.блюдо
D50: гор.напиток
D51: хлеб
D52: фрукты
D55: итого | F55: =SUM(F48:F54) -> 0.000 | G55: =SUM(G48:G54) -> 0.000 | H55: =SUM(H48:H54) -> 0.000 | I55: =SUM(I48:I54) -> 0.000 | J55: =SUM(J48:J54) -> 0 | L55: =SUM(L48:L54) -> 0.00
A56: =A48 -> 1 | B56: =B48 -> 2 | C56: Завтрак 2 | D56: фрукты
D59: итого | F59: =SUM(F56:F58) -> 0.000 | G59: =SUM(G56:G58) -> 0.000 | H59: =SUM(H56:H58) -> 0.000 | I59: =SUM(I56:I58) -> 0.000 | J59: =SUM(J56:J58) -> 0 | L59: =SUM(L56:L64) -> 0.00
A60: =A48 -> 1 | B60: =B48 -> 2 | C60: Обед | D60: закуска | E60: Салат из белокочанной капусты | F60: 60.000 | G60: 0.931 | H60: 3.051 | I60: 5.645 | J60: 54
D61: 1 блюдо
D62: 2 блюдо | E62: Жаркое из филе куриных грудок | F62: 40/160 | G62: 12.890 | H62: 15.910 | I62: 35.790 | J62: 341
D63: гарнир
D64: напиток | E64: Чай с сахаром | F64: 200/8 | G64: 0.021 | H64: 0.005 | I64: 7.989 | J64: 32
D65: хлеб бел. | E65: Хлеб пшеничный | F65: 20.000 | G65: 1.520 | H65: 0.160 | I65: 9.840 | J65: 47
D66: хлеб черн. | E66: Хлеб ржано-пшеничный | F66: 20.000 | G66: 1.000 | H66: 0.200 | I66: 9.000 | J66: 44
D69: итого | G69: =SUM(G60:G68) -> 16.362 | H69: 19.326 | I69: 68.264 | J69: 518 | L69: 66.76
A70: =A48 -> 1 | B70: =B48 -> 2 | C70: Полдник | D70: булочное
D71: напиток
D74: итого | F74: =SUM(F70:F73) -> 0.000 | G74: =SUM(G70:G73) -> 0.000 | H74: =SUM(H70:H73) -> 0.000 | I74: =SUM(I70:I73) -> 0.000 | J74: =SUM(J70:J73) -> 0
A75: =A48 -> 1 | B75: =B48 -> 2 | C75: Ужин | D75: гор.блюдо
D76: гарнир
D77: напиток
D78: хлеб
D81: итого | L81: =SUM(L75:L83) -> 0.00
A82: =A48 -> 1 | B82: =B48 -> 2 | C82: Ужин 2 | D82: кисломол.
D83: булочное
D84: напиток
D85: фрукты
D88: итого | F88: =SUM(F82:F87) -> 0.000 | G88: =SUM(G82:G87) -> 0.000 | H88: =SUM(H82:H87) -> 0.000 | I88: =SUM(I82:I87) -> 0.000 | J88: =SUM(J82:J87) -> 0 | L88: =SUM(L82:L90) -> 0.00
A89: =A48 -> 1 | B89: =B48 -> 2 | C89: Итого за день: | F89: =F69 -> 0.000 | G89: =G69 -> 16.362 | H89: =H69 -> 19.326 | I89: 68.264 | J89: 518 | L89: =L69 -> 66.76
A90: 1 | B90: 3 | C90: Завтрак | D90: гор.блюдо
D92: гор.напиток
D93: хлеб
D94: фрукты
D97: итого | F97: =SUM(F90:F96) -> 0.000 | G97: =SUM(G90:G96) -> 0.000 | H97: =SUM(H90:H96) -> 0.000 | I97: =SUM(I90:I96) -> 0.000 | J97: =SUM(J90:J96) -> 0 | L97: 0.00
A98: =A90 -> 1 | B98: =B90 -> 3 | C98: Завтрак 2 | D98: фрукты
D101: итого | F101: =SUM(F98:F100) -> 0.000 | G101: =SUM(G98:G100) -> 0.000 | H101: =SUM(H98:H100) -> 0.000 | I101: =SUM(I98:I100) -> 0.000 | J101: =SUM(J98:J100) -> 0 | L101: =SUM(L98:L106) -> 0.00
A102: =A90 -> 1 | B102: =B90 -> 3 | C102: Обед | D102: закуска | E102: Плоды и ягоды свежие (яблоки) | F102: 90.000 | G102: 0.360 | H102: 0.360 | I102: 8.820 | J102: 42
D103: 1 блюдо
D104: 2 блюдо | E104: Чикен | F104: 90.000 | G104: 11.103 | H104: 12.108 | I104: 11.093 | J104: 176
D105: гарнир | E105: Макаронные изделия отварные | F105: 150.000 | G105: 5.044 | H105: 3.068 | I105: 35.906 | J105: 191
D106: напиток | E106: Напиток из урюка | F106: 200.000 | G106: 0.020 | H106: 0.000 | I106: 7.990 | J106: 32
D107: хлеб бел. | E107: Хлеб ржано-пшеничный | F107: 20.000 | G107: 1.000 | H107: 0.200 | I107: 9.000 | J107: 44
D108: хлеб черн. | E108: Хлеб пшеничный | F108: 20.000 | G108: 1.520 | H108: 0.160 | I108: 9.840 | J108: 47
D111: итого | F111: =SUM(F102:F110) -> 570.000 | G111: =SUM(G102:G110) -> 19.047 | H111: =SUM(H102:H110) -> 15.896 | I111: 82.649 | J111: 532 | L111: 66.76
A112: =A90 -> 1 | B112: =B90 -> 3 | C112: Полдник | D112: булочное
D113: напиток
D116: итого | F116: =SUM(F112:F115) -> 0.000 | G116: =SUM(G112:G115) -> 0.000 | H116: =SUM(H112:H115) -> 0.000 | I116: =SUM(I112:I115) -> 0.000 | J116: =SUM(J112:J115) -> 0
A117: =A90 -> 1 | B117: =B90 -> 3 | C117: Ужин | D117: гор.блюдо
D118: гарнир
D119: напиток
D120: хлеб
D123: итого | F123: =SUM(F117:F122) -> 0.000 | G123: =SUM(G117:G122) -> 0.000 | H123: =SUM(H117:H122) -> 0.000 | I123: =SUM(I117:I122) -> 0.000 | J123: =SUM(J117:J122) -> 0 | L123: =SUM(L117:L125) -> 0.00
A124: =A90 -> 1 | B124: =B90 -> 3 | C124: Ужин 2 | D124: кисломол.
D125: булочное
D126: напиток
D127: фрукты
D130: итого | F130: =SUM(F124:F129) -> 0.000 | G130: =SUM(G124:G129) -> 0.000 | H130: =SUM(H124:H129) -> 0.000 | I130: =SUM(I124:I129) -> 0.000 | J130: =SUM(J124:J129) -> 0 | L130: =SUM(L124:L132) -> 0.00
A131: =A90 -> 1 | B131: =B90 -> 3 | C131: Итого за день: | F131: =F111 -> 570.000 | G131: =G111 -> 19.047 | H131: 15.896 | I131: 82.649 | J131: 532 | L131: =L111 -> 66.76
A132: 1 | B132: 4 | C132: Завтрак | D132: гор.блюдо
D134: гор.напиток
D135: хлеб
D136: фрукты
D139: итого | F139: =SUM(F132:F138) -> 0.000 | G139: =SUM(G132:G138) -> 0.000 | H139: =SUM(H132:H138) -> 0.000 | I139: =SUM(I132:I138) -> 0.000 | J139: =SUM(J132:J138) -> 0 | L139: =SUM(L132:L138) -> 0.00
A140: =A132 -> 1 | B140: =B132 -> 4 | C140: Завтрак 2 | D140: фрукты
D143: итого | F143: =SUM(F140:F142) -> 0.000 | G143: =SUM(G140:G142) -> 0.000 | H143: =SUM(H140:H142) -> 0.000 | I143: =SUM(I140:I142) -> 0.000 | J143: =SUM(J140:J142) -> 0 | L143: =SUM(L140:L148) -> 0.00
A144: =A132 -> 1 | B144: =B132 -> 4 | C144: Обед | D144: закуска | E144: Салат из моркови | F144: 60.000 | G144: 2.060 | H144: 0.120 | I144: 2.280 | J144: 14
D145: 1 блюдо
D146: 2 блюдо | E146: Плов с говядиной | F146: 40/160 | G146: 15.440 | H146: 19.290 | I146: 51.200 | J146: 430
D147: гарнир
D148: напиток | E148: Чай с сахаром | F148: 200/8 | G148: 0.021 | H148: 0.005 | I148: 7.989 | J148: 32
D149: хлеб бел. | E149: Хлеб ржано-пшеничный | F149: 20.000 | G149: 1.000 | H149: 0.200 | I149: 9.000 | J149: 44
D150: хлеб черн. | E150: Хлеб пшеничный | F150: 20.000 | G150: 1.520 | H150: 0.160 | I150: 9.840 | J150: 47
D153: итого | F153: =SUM(F144:F152) -> 100.000 | G153: =SUM(G144:G152) -> 20.041 | H153: 19.775 | I153: 80.309 | J153: 567 | L153: 66.76
A154: =A132 -> 1 | B154: =B132 -> 4 | C154: Полдник | D154: булочное
D155: напиток
D158: итого | F158: =SUM(F154:F157) -> 0.000 | G158: =SUM(G154:G157) -> 0.000 | H158: =SUM(H154:H157) -> 0.000 | I158: =SUM(I154:I157) -> 0.000 | J158: =SUM(J154:J157) -> 0 | L158: 0.00
A159: =A132 -> 1 | B159: =B132 -> 4 | C159: Ужин | D159: гор.блюдо
D160: гарнир
D161: напиток
D162: хлеб
D165: итого | F165: =SUM(F159:F164) -> 0.000 | G165: =SUM(G159:G164) -> 0.000 | H165: =SUM(H159:H164) -> 0.000 | I165: =SUM(I159:I164) -> 0.000 | J165: =SUM(J159:J164) -> 0 | L165: =SUM(L159:L167) -> 0.00
A166: =A132 -> 1 | B166: =B132 -> 4 | C166: Ужин 2 | D166: кисломол.
D167: булочное
D168: напиток
D169: фрукты
D172: итого | F172: =SUM(F166:F171) -> 0.000 | G172: =SUM(G166:G171) -> 0.000 | H172: =SUM(H166:H171) -> 0.000 | I172: =SUM(I166:I171) -> 0.000 | J172: =SUM(J166:J171) -> 0 | L172: =SUM(L166:L174) -> 0.00
A173: =A132 -> 1 | B173: =B132 -> 4 | C173: Итого за день: | F173: =F153 -> 100.000 | G173: =G153 -> 20.041 | H173: 19.775 | I173: 80.309 | J173: 567 | L173: =L153 -> 66.76
A174: 1 | B174: 5 | C174: Завтрак | D174: гор.блюдо
D176: гор.напиток
D177: хлеб
D178: фрукты
D181: итого | F181: =SUM(F174:F180) -> 0.000 | G181: =SUM(G174:G180) -> 0.000 | H181: =SUM(H174:H180) -> 0.000 | I181: =SUM(I174:I180) -> 0.000 | J181: =SUM(J174:J180) -> 0 | L181: 0.00
A182: =A174 -> 1 | B182: =B174 -> 5 | C182: Завтрак 2 | D182: фрукты
D185: итого | F185: =SUM(F182:F184) -> 0.000 | G185: =SUM(G182:G184) -> 0.000 | H185: =SUM(H182:H184) -> 0.000 | I185: =SUM(I182:I184) -> 0.000 | J185: =SUM(J182:J184) -> 0 | L185: =SUM(L182:L190) -> 0.00
A186: =A174 -> 1 | B186: =B174 -> 5 | C186: Обед | D186: закуска | E186: Салат из квашеной капусты | F186: 60.000 | G186: 0.420 | H186: 0.060 | I186: 1.140 | J186: 7
D187: 1 блюдо
D188: 2 блюдо | E188: Биточки рыбные из минтая | F188: 90.000 | G188: 12.060 | H188: 15.120 | I188: 16.920 | J188: 238
D189: гарнир | E189: Пюре картофельное | F189: 150.000 | G189: 3.437 | H189: 4.556 | I189: 21.451 | J189: 144
D190: напиток | E190: Компот из свежих плодов (яблоки) | F190: 200.000 | G190: 0.080 | H190: 0.080 | I190: 11.940 | J190: 49
D191: хлеб бел. | E191: Хлеб пшеничный | F191: 20.000 | G191: 1.520 | H191: 0.160 | I191: 9.840 | J191: 47
D192: хлеб черн. | E192: Хлеб ржано-пшеничный | F192: 20.000 | G192: 1.000 | H192: 0.200 | I192: 9.000 | J192: 44
D195: итого | F195: =SUM(F186:F194) -> 540.000 | G195: =SUM(G186:G194) -> 18.517 | H195: 20.176 | I195: 70.291 | J195: 529 | L195: 66.76
A196: =A174 -> 1 | B196: =B174 -> 5 | C196: Полдник | D196: булочное
D197: напиток
D200: итого | F200: =SUM(F196:F199) -> 0.000 | G200: =SUM(G196:G199) -> 0.000 | H200: =SUM(H196:H199) -> 0.000 | I200: =SUM(I196:I199) -> 0.000 | J200: =SUM(J196:J199) -> 0 | L200: 0.00
A201: =A174 -> 1 | B201: =B174 -> 5 | C201: Ужин | D201: гор.блюдо
D202: гарнир
D203: напиток
D204: хлеб
D207: итого | F207: =SUM(F201:F206) -> 0.000 | G207: =SUM(G201:G206) -> 0.000 | H207: =SUM(H201:H206) -> 0.000 | I207: =SUM(I201:I206) -> 0.000 | J207: =SUM(J201:J206) -> 0 | L207: =SUM(L201:L209) -> 0.00
A208: =A174 -> 1 | B208: =B174 -> 5 | C208: Ужин 2 | D208: кисломол.
D209: булочное
D210: напиток
D211: фрукты
D214: итого | F214: =SUM(F208:F213) -> 0.000 | G214: =SUM(G208:G213) -> 0.000 | H214: =SUM(H208:H213) -> 0.000 | I214: =SUM(I208:I213) -> 0.000 | J214: =SUM(J208:J213) -> 0 | L214: =SUM(L208:L216) -> 0.00
A215: =A174 -> 1 | B215: =B174 -> 5 | C215: Итого за день: | F215: =F195 -> 540.000 | G215: =G195 -> 18.517 | H215: 20.176 | I215: 70.291 | J215: 529 | L215: =L195 -> 66.76
A216: 1 | B216: 6 | C216: Завтрак | D216: гор.блюдо
D218: гор.напиток
D219: хлеб
D220: фрукты
D223: итого | F223: =SUM(F216:F222) -> 0.000 | G223: =SUM(G216:G222) -> 0.000 | H223: =SUM(H216:H222) -> 0.000 | I223: =SUM(I216:I222) -> 0.000 | J223: =SUM(J216:J222) -> 0 | L223: =SUM(L216:L222) -> 0.00
A224: =A216 -> 1 | B224: =B216 -> 6 | C224: Завтрак 2 | D224: фрукты
D227: итого | F227: =SUM(F224:F226) -> 0.000 | G227: =SUM(G224:G226) -> 0.000 | H227: =SUM(H224:H226) -> 0.000 | I227: =SUM(I224:I226) -> 0.000 | J227: =SUM(J224:J226) -> 0 | L227: =SUM(L224:L232) -> 0.00
A228: =A216 -> 1 | B228: =B216 -> 6 | C228: Обед | D228: закуска | E228: Плоды и ягоды свежие (яблоки) | F228: 90.000 | G228: 0.360 | H228: 0.360 | I228: 8.820 | J228: 42
D229: 1 блюдо
D230: 2 блюдо | E230: Пельмени "Для умников и умниц"отварные с маслом | F230: 150/5 | G230: 17.047 | H230: 15.236 | I230: 36.838 | J230: 344
D231: гарнир
D232: напиток | E232: Чай с сахаром ,лимоном | F232: 200/8/5 | G232: 0.066 | H232: 0.010 | I232: 8.139 | J232: 34
D233: хлеб бел. | E233: Хлеб пшеничный | F233: 22.000 | G233: 1.672 | H233: 0.176 | I233: 10.824 | J233: 52
D234: хлеб черн. | E234: Хлб ржано-пшеничный | F234: 20.000 | G234: 1.000 | H234: 0.200 | I234: 9.000 | J234: 44
D237: итого | F237: =SUM(F228:F236) -> 132.000 | G237: =SUM(G228:G236) -> 20.145 | H237: 15.982 | I237: 73.621 | J237: =SUM(J228:J236) -> 516 | L237: 66.76
A238: =A216 -> 1 | B238: =B216 -> 6 | C238: Полдник | D238: булочное
D239: напиток
D242: итого | F242: =SUM(F238:F241) -> 0.000 | G242: =SUM(G238:G241) -> 0.000 | H242: =SUM(H238:H241) -> 0.000 | I242: =SUM(I238:I241) -> 0.000 | J242: =SUM(J238:J241) -> 0
A243: =A216 -> 1 | B243: =B216 -> 6 | C243: Ужин | D243: гор.блюдо
D244: гарнир
D245: напиток
D246: хлеб
D249: итого | F249: =SUM(F243:F248) -> 0.000 | G249: =SUM(G243:G248) -> 0.000 | H249: =SUM(H243:H248) -> 0.000 | I249: =SUM(I243:I248) -> 0.000 | J249: =SUM(J243:J248) -> 0 | L249: =SUM(L243:L251) -> 0.00
A250: =A216 -> 1 | B250: =B216 -> 6 | C250: Ужин 2 | D250: кисломол.
D251: булочное
D252: напиток
D253: фрукты
D256: итого | F256: =SUM(F250:F255) -> 0.000 | G256: =SUM(G250:G255) -> 0.000 | H256: =SUM(H250:H255) -> 0.000 | I256: =SUM(I250:I255) -> 0.000 | J256: =SUM(J250:J255) -> 0 | L256: =SUM(L250:L258) -> 0.00
A257: =A216 -> 1 | B257: =B216 -> 6 | C257: Итого за день: | F257: =F237 -> 132.000 | G257: =G237 -> 20.145 | H257: 15.982 | I257: 73.621 | J257: 516 | L257: =L237 -> 66.76
A258: 1 | B258: 7 | C258: Завтрак | D258: гор.блюдо
D260: гор.напиток
D261: хлеб
D262: фрукты
D265: итого | F265: =SUM(F258:F264) -> 0.000 | G265: =SUM(G258:G264) -> 0.000 | H265: =SUM(H258:H264) -> 0.000 | I265: =SUM(I258:I264) -> 0.000 | J265: =SUM(J258:J264) -> 0 | L265: 0.00
A266: =A258 -> 1 | B266: =B258 -> 7 | C266: Завтрак 2 | D266: фрукты
D269: итого | F269: =SUM(F266:F268) -> 0.000 | G269: =SUM(G266:G268) -> 0.000 | H269: =SUM(H266:H268) -> 0.000 | I269: =SUM(I266:I268) -> 0.000 | J269: =SUM(J266:J268) -> 0 | L269: =SUM(L266:L274) -> 0.00
A270: =A258 -> 1 | B270: =B258 -> 7 | C270: Обед | D270: закуска
D271: 1 блюдо
D272: 2 блюдо
D273: гарнир
D274: напиток
D275: хлеб бел.
D276: хлеб черн.
D279: итого | G279: =SUM(G270:G278) -> 0.000 | H279: =SUM(H270:H278) -> 0.000 | I279: =SUM(I270:I278) -> 0.000 | J279: =SUM(J270:J278) -> 0 | L279: =SUM(L276:L284) -> 0.00
A280: =A258 -> 1 | B280: =B258 -> 7 | C280: Полдник | D280: булочное
D281: напиток
D284: итого | F284: =SUM(F280:F283) -> 0.000 | G284: =SUM(G280:G283) -> 0.000 | H284: =SUM(H280:H283) -> 0.000 | I284: =SUM(I280:I283) -> 0.000 | J284: =SUM(J280:J283) -> 0 | L284: =SUM(L277:L283) -> 0.00
A285: =A258 -> 1 | B285: =B258 -> 7 | C285: Ужин | D285: гор.блюдо
D286: гарнир
D287: напиток
... 212 more rows
